lending/lending_fUSD_20241229
["ID","MTS","AMOUNT","RATE_DAILY","PERIOD"]
[347104306,1735499455876,-500.0,0.00018553,2]
[347104307,1735499455885,-500.0,0.00018553,2]
[347104308,1735499455895,-150.0,0.00018559,2]
[347104309,1735499455906,-188.65738222,0.00018561,2]
[347104310,1735499455915,-150.0,0.00018575,2]
[347104311,1735499455924,-150.0,0.00018592,2]
[347104312,1735499455933,-150.0,0.00018596,2]
[347104313,1735499455942,-194.73,0.000186,2]
[347104314,1735499455951,-925.16,0.00018601,7]
[347104315,1735499455960,-925.16,0.00018601,7]
[347104316,1735499455969,-150.0,0.00018602,2]
[347104317,1735499455978,-150.0,0.00018608,2]
[347104318,1735499455987,-150.0,0.0001861,2]
[347104319,1735499455996,-150.0,0.00018618,2]
[347104320,1735499456006,-150.0,0.0001862,2]
[347104321,1735499456015,-150.0,0.00018622,2]
[347104322,1735499456025,-1000.0,0.0001863,2]
[347104323,1735499456034,-1000.0,0.0001863,2]
[347104324,1735499456043,-1000.0,0.0001863,2]
[347104325,1735499456052,-1000.0,0.0001863,2]
[347104326,1735499456062,-1000.0,0.0001863,2]
[347104327,1735499456071,-1000.0,0.0001863,2]
[347104328,1735499456080,-1000.0,0.0001863,2]
[347104329,1735499456090,-1001.9737891,0.0001863,2]
[347104330,1735499456100,-150.0,0.0001864,2]
[347104331,1735499456109,-752.07,0.00018739,2]
[347104332,1735499456119,-500.0,0.00018739,2]
[347104333,1735499456128,-1427.17,0.00018739,2]
[347104334,1735499456138,-500.0,0.00018739,2]
[347104335,1735499456147,-854.66,0.00018739,2]
[347104336,1735499456157,-1259.29,0.00018767,2]
[347104337,1735499456166,-500.0,0.00018767,2]
[347104338,1735499456176,-500.0,0.00018767,2]
[347104339,1735499456185,-500.0,0.00018767,2]
[347104340,1735499456194,-2161.99,0.00018767,2]
[347104341,1735499456203,-541.02,0.00018767,2]
[347104342,1735499456212,-500.0,0.00018767,2]
[347104343,1735499456222,-492.7838027,0.00018794,2]
[347104344,1735499456231,-150.0,0.00018805,2]
[347104345,1735499456241,-500.0,0.00018826,2]
[347104346,1735499456250,-500.0,0.00018826,2]
[347104347,1735499456260,-810.37,0.00018826,2]
[347104348,1735499456269,-500.0,0.00018826,2]
[347104349,1735499456279,-735.39,0.00018826,2]
[347104350,1735499456289,-500.0,0.00018826,2]
[347104351,1735499456299,-500.0,0.00018826,2]
[347104352,1735499456309,-666.87,0.00018826,2]
[347104353,1735499456318,-1104.65,0.00018826,2]
[347104354,1735499456328,-578.35,0.00018826,2]
[347104355,1735499456337,-500.0,0.00018827,2]
[347104356,1735499456349,-500.0,0.00018827,2]
[347104357,1735499456359,-150.0,0.00018844,2]
[347104358,1735499456368,-150.0,0.00018864,2]
[347104359,1735499456378,-925.16,0.00018874,7]
[347104360,1735499456387,-925.16,0.00018874,7]
[347104361,1735499456396,-150.0,0.00018879,2]
[347104362,1735499456406,-150.0,0.00018883,2]
[347104363,1735499456416,-150.0,0.00018885,2]
[347104364,1735499456425,-500.0,0.00018904,2]
[347104365,1735499456436,-1500.0,0.00018908,2]
[347104366,1735499456445,-150.0,0.00018913,2]
[347104367,1735499456455,-150.0,0.00018921,2]
[347104368,1735499456464,-150.0,0.00018938,2]
[347104369,1735499456473,-150.0,0.00018974,2]
[347104370,1735499456483,-150.0,0.00018985,2]
[347104371,1735499456492,-3000.0,0.00019,2]
[347104372,1735499456501,-714.61081,0.00019,2]
[347104373,1735499456510,-438.142,0.00019,2]
[347104374,1735499456520,-150.0,0.00019002,2]
[347104375,1735499456529,-150.0,0.00019002,2]
[347104376,1735499456540,-300.0,0.00019002,2]
[347104377,1735499456591,-436.35,0.00019002,2]
[347104378,1735499456601,-752.07,0.00019013,2]
[347104379,1735499456610,-500.0,0.00019013,2]
[347104380,1735499456619,-1427.17,0.00019013,2]
[347104381,1735499456629,-500.0,0.00019013,2]
[347104382,1735499456639,-854.66,0.00019013,2]
[347104383,1735499456648,-1259.29,0.00019041,2]
[347104384,1735499456660,-500.0,0.00019041,2]
[347104385,1735499456669,-500.0,0.00019041,2]
[347104386,1735499456678,-500.0,0.00019041,2]
[347104387,1735499456687,-2161.99,0.00019041,2]
[347104388,1735499456696,-500.0,0.00019041,2]
[347104389,1735499456705,-150.0,0.00019047,2]
[347104390,1735499456715,-150.0,0.00019087,2]
[347104391,1735499456724,-500.0,0.000191,2]
[347104392,1735499456733,-500.0,0.000191,2]
[347104393,1735499456742,-810.37,0.000191,2]
[347104394,1735499456751,-500.0,0.000191,2]
[347104395,1735499456761,-735.39,0.000191,2]
[347104396,1735499456770,-500.0,0.000191,2]
[347104397,1735499456779,-500.0,0.000191,2]
[347104398,1735499456789,-666.87,0.000191,2]
[347104399,1735499456799,-1104.65,0.000191,2]
[347104400,1735499456809,-578.35,0.000191,2]
[347104401,1735499456818,-500.0,0.00019101,2]
[347104402,1735499456831,-152.0,0.00019106,4]
[347104403,1735499456840,-150.0,0.00019109,2]
[347104404,1735499456850,-150.0,0.00019127,2]
[347104405,1735499456859,-925.16,0.00019148,7]
[347104406,1735499456868,-925.16,0.00019148,7]
[347104407,1735499456878,-150.0,0.00019155,2]
[347104408,1735499456887,-150.0,0.00019176,2]
[347104409,1735499456896,-150.0,0.00019178,2]
[347104410,1735499456908,-150.0,0.00019178,2]
[347104411,1735499456918,-150.0,0.00019188,2]
[347104412,1735499456927,-1490.99939886,0.00019202,2]
[347104413,1735499456937,-150.0,0.00019203,2]
[347104414,1735499456946,-1500.0,0.0001921,2]
[347104415,1735499456955,-150.0,0.00019225,2]
[347104416,1735499456965,-246.78,0.00019242,30]
[347104417,1735499456975,-150.0,0.00019255,2]
[347104418,1735499456984,-150.0,0.00019281,2]
[347104419,1735499456993,-150.0,0.00019283,2]
[347104420,1735499457003,-752.07,0.00019287,2]
[347104421,1735499457012,-500.0,0.00019287,2]
[347104422,1735499457022,-1427.17,0.00019287,2]
[347104423,1735499457031,-500.0,0.00019287,2]
[347104424,1735499457041,-854.66,0.00019287,2]
[347104425,1735499457050,-150.0,0.00019299,2]
[347104426,1735499457059,-150.0,0.0001931,2]
[347104427,1735499457068,-150.0,0.00019315,2]
[347104428,1735499457077,-1259.29,0.00019315,2]
[347104429,1735499457086,-610.12,0.00019315,2]
[347104430,1735499457095,-500.0,0.00019315,2]
[347104431,1735499457104,-500.0,0.00019315,2]
[347104432,1735499457113,-2161.99,0.00019315,2]
[347104433,1735499457122,-500.0,0.00019315,2]
[347104434,1735499457131,-150.0,0.00019337,2]
[347104435,1735499457140,-150.0,0.00019339,2]
[347104436,1735499457149,-150.0,0.00019345,2]
[347104437,1735499457159,-150.0,0.00019354,2]
[347104438,1735499457168,-434.58,0.00019374,2]
[347104439,1735499457177,-500.0,0.00019374,2]
[347104440,1735499457186,-810.37,0.00019374,2]
[347104441,1735499457195,-500.0,0.00019374,2]
[347104442,1735499457204,-735.39,0.00019374,2]
[347104443,1735499457213,-500.0,0.00019374,2]
[347104444,1735499457223,-500.0,0.00019374,2]
[347104445,1735499457232,-666.87,0.00019374,2]
[347104446,1735499457242,-1104.65,0.00019374,2]
[347104447,1735499457251,-578.35,0.00019374,2]
[347104448,1735499457260,-500.0,0.00019375,2]
[347104449,1735499457270,-500.0,0.000194,7]
[347104450,1735499457279,-925.16,0.00019421,7]
[347104451,1735499457289,-925.16,0.00019421,7]
[347104452,1735499457298,-150.0,0.00019422,2]
[347104453,1735499457307,-150.0,0.0001944,2]
[347104454,1735499457316,-150.0,0.00019452,2]
[347104455,1735499457326,-150.0,0.00019488,2]
[347104456,1735499457335,-150.0,0.00019489,2]
[347104457,1735499457344,-150.0,0.00019497,2]
[347104458,1735499457353,-700.0,0.000195,7]
[347104459,1735499457362,-150.0,0.00019523,2]
[347104460,1735499457371,-150.0,0.00019531,2]
[347104461,1735499457380,-150.0,0.00019534,2]
[347104462,1735499457390,-150.0,0.00019548,2]
[347104463,1735499457399,-752.07,0.00019561,2]
[347104464,1735499457410,-500.0,0.00019561,2]
[347104465,1735499457419,-1427.17,0.00019561,2]
[347104466,1735499457429,-500.0,0.00019561,2]
[347104467,1735499457442,-854.66,0.00019561,2]
[347104468,1735499457452,-150.0,0.00019576,2]
[347104469,1735499457460,-150.0,0.00019589,2]
[347104470,1735499457470,-1259.29,0.00019589,2]
[347104471,1735499457481,-500.0,0.00019589,2]
[347104472,1735499457491,-500.0,0.00019589,2]
[347104473,1735499457501,-2161.99,0.00019589,2]
[347104474,1735499457511,-500.0,0.00019589,2]
[347104475,1735499457520,-1709.05,0.00019591,4]
[347104476,1735499457529,-1000.0,0.000196,7]
[347104477,1735499457538,-150.0,0.00019602,2]
[347104478,1735499457546,-150.0,0.0001961,2]
[347104479,1735499457555,-150.0,0.00019619,2]
[347104480,1735499457564,-150.0,0.00019628,2]
[347104481,1735499457573,-500.0,0.00019648,2]
[347104482,1735499457581,-810.37,0.00019648,2]
[347104483,1735499457590,-500.0,0.00019648,2]
[347104484,1735499457599,-735.39,0.00019648,2]
[347104485,1735499457608,-500.0,0.00019648,2]
[347104486,1735499457617,-239.2671442,0.00019648,2]
[347104487,1735499457626,-666.87,0.00019648,2]
[347104488,1735499457635,-1104.65,0.00019648,2]
[347104489,1735499457644,-578.35,0.00019648,2]
[347104490,1735499457655,-500.0,0.00019649,2]
[347104491,1735499457664,-150.0,0.00019655,2]
[347104492,1735499457673,-183.19,0.00019658,2]
[347104493,1735499457682,-150.0,0.00019669,2]
[347104494,1735499457691,-150.0,0.00019672,2]
[347104495,1735499457700,-150.0,0.00019676,2]
[347104496,1735499457709,-150.0,0.00019681,2]
[347104497,1735499457718,-150.0,0.00019683,2]
[347104498,1735499457727,-150.0,0.00019683,2]
[347104499,1735499457736,-150.0,0.00019697,2]
[347104500,1735499457745,-150.0,0.000197,2]
[347104501,1735499457753,-1300.0,0.000197,7]
[347104502,1735499457762,-150.0,0.00019725,2]
[347104503,1735499457771,-150.0,0.00019726,2]
[347104504,1735499457780,-500.0,0.00019726,2]
[347104505,1735499457789,-150.0,0.00019727,2]
[347104506,1735499457798,-150.0,0.00019729,2]
[347104507,1735499457807,-151.36785755,0.00019743,2]
[347104508,1735499457816,-150.0,0.0001975,2]
[347104509,1735499457825,-150.0,0.00019759,2]
[347104510,1735499457833,-150.0,0.00019769,2]
[347104511,1735499457842,-150.0,0.00019777,2]
[347104512,1735499457851,-1500.0,0.00019779,2]
[347104513,1735499457860,-150.0,0.00019785,2]
[347104514,1735499457868,-200.0,0.000198,7]
[347104515,1735499457877,-150.0,0.00019805,2]
[347104516,1735499457886,-300.0,0.00019822,2]
[347104517,1735499457895,-150.0,0.00019822,2]
[347104518,1735499457906,-150.0,0.00019823,2]
[347104519,1735499457915,-752.07,0.00019835,2]
[347104520,1735499457924,-500.0,0.00019835,2]
[347104521,1735499457932,-1427.17,0.00019835,2]
[347104522,1735499457941,-277.9,0.00019835,2]
[347104523,1735499457950,-854.66,0.00019835,2]
[347104524,1735499457959,-150.0,0.0001984,2]
[347104525,1735499457968,-150.0,0.00019846,2]
[347104526,1735499457977,-1500.0,0.00019846,2]
[347104527,1735499457986,-150.0,0.00019863,2]
[347104528,1735499457995,-1259.29,0.00019863,2]
[347104529,1735499458004,-500.0,0.00019863,2]
[347104530,1735499458013,-500.0,0.00019863,2]
[347104531,1735499458023,-2161.99,0.00019863,2]
[347104532,1735499458032,-500.0,0.00019863,2]
[347104533,1735499458041,-167.25950436,0.0001988,2]
[347104534,1735499458050,-190.75173835,0.0001988,2]
[347104535,1735499458060,-7953.93385784,0.0001988,2]
[347104536,1735499458069,-188.65738222,0.0001988,2]
[347104537,1735499458078,-296.43677149,0.0001988,3]
[347104538,1735499458087,-182.97246619,0.0001988,2]
[347104539,1735499458096,-607.79619452,0.00019881,2]
[347104540,1735499458105,-220.0,0.000199,2]
[347104541,1735499458114,-168.08147606,0.000199,2]
[347104542,1735499458123,-154.83024305,0.000199,2]
[347104543,1735499458133,-200.0,0.000199,7]
[347104544,1735499458142,-150.0,0.00019915,2]
[347104545,1735499458152,-150.0,0.00019921,2]
[347104546,1735499458161,-538.50254103,0.00019922,2]
[347104547,1735499458171,-810.37,0.00019922,2]
[347104548,1735499458180,-527.63139492,0.00019922,2]
[347104549,1735499458189,-735.39,0.00019922,2]
[347104550,1735499458198,-500.0,0.00019922,2]
[347104551,1735499458208,-666.87,0.00019922,2]
[347104552,1735499458217,-1104.65,0.00019922,2]
[347104553,1735499458227,-578.35,0.00019922,2]
[347104554,1735499458236,-500.0,0.00019923,2]
[347104555,1735499458245,-150.0,0.00019935,2]
[347104556,1735499458254,-1405203.39245611,0.0001995,4]
[347104557,1735499458447,-500.0,0.00019101,2]
[347104558,1735499458456,-591.88000006,0.0001995,4]
[347104559,1735499458468,-2302.42204229,0.0001995,4]
[347104560,1735499458480,-9081.0,0.0001995,4]
[347104561,1735499458491,-36147.6469424,0.0001995,4]
[347104562,1735499458504,-422.25836631,0.0001995,4]
[347104563,1735499458515,-5272.452286,0.0001995,4]
[347104564,1735499458530,-411.44302335,0.0001995,4]
[347104565,1735499458545,-16786.1829438,0.0001995,4]
[347104566,1735499458556,-12165.44313694,0.0001995,4]
[347104567,1735499458674,-554.55,0.00016086,2]
[347104568,1735499458683,-500.0,0.00016087,2]
[347104569,1735499458693,-500.0,0.00019,2]
[347104570,1735499458704,-500.0,0.00019375,2]
[347104571,1735499458714,-500.0,0.00019649,2]
[347104572,1735499458723,-500.0,0.00019923,2]
[347104573,1735499458732,-295655.97483208,0.0001995,4]
[347104574,1735499458742,-150.0,0.00019958,2]
[347104575,1735499458751,-150.0,0.0001996,2]
[347104576,1735499458760,-150.0,0.0001996,2]
[347104577,1735499458770,-150.0,0.00019961,2]
[347104578,1735499458779,-250.0,0.0001997,2]
[347104579,1735499458788,-500.0,0.00019979,2]
[347104580,1735499458798,-150.0,0.00019979,2]
[347104581,1735499458807,-1000.0,0.00019979,2]
[347104582,1735499458816,-500.0,0.00019979,2]
[347104583,1735499458825,-500.0,0.00019979,2]
[347104584,1735499458834,-511.80129548,0.00019979,2]
[347104585,1735499458843,-324529.74191295,0.0001998,2]
[347104586,1735499458854,-8114.01232169,0.0001998,2]
[347104587,1735499458865,-18997.5,0.0001998,2]
[347104588,1735499458877,-427519.8257296,0.0001998,2]
[347104589,1735499458905,-1377.04294707,0.00019733,2]
[347104590,1735499458916,-122.95705293,0.00019733,2]
[347104591,1735499458925,-1251.44294707,0.0001998,2]
[347104592,1735499458936,-425.73802,0.0001998,2]
[347104593,1735499458948,-304.52999997,0.0001998,2]
[347104594,1735499458959,-521.00909852,0.0001998,2]
[347104595,1735499458975,-504.30704,0.00018,2]
[347104596,1735499458984,-32216.85271101,0.0001998,2]
[347104597,1735499459149,-405.46587659,0.00015999,2]
[347104598,1735499459166,-104.49412341,0.00015999,2]
[347104599,1735499459175,-896.44430138,0.0001998,2]
[347104600,1735499459188,-5963.66790311,0.0001998,2]
[347104601,1735499459199,-3949.3,0.0001998,2]
[347104602,1735499459211,-178149.999999,0.0001998,2]
[347104603,1735499459224,-355.64622195,0.0001998,2]
[347104604,1735499459237,-404.880005,0.0001998,2]
[347104605,1735499459248,-399490.57444086,0.0001998,2]
[347104606,1735499459259,-5602.1528065,0.0001998,2]
[347104607,1735499459272,-780.60377805,0.0001998,2]
[347104608,1735499459283,-3282.40982692,0.0001998,2]
[347104609,1735499459295,-1947.7999999,0.0001998,2]
[347104610,1735499816840,174.09,0.00010137,2]
[347104611,1735499889288,500.0,0.00019979,120]
[347104623,1735500310180,999.999998,0.00024896,120]
[347104624,1735500318886,268.49889362,0.00024896,120]
[347104625,1735500320733,787.36505596,0.00024931,120]
[347104627,1735500347506,-300.0,0.00011999,2]
[347104628,1735500347528,-450.0,0.00012,2]
[347104629,1735500347551,-5450.16,0.00012,2]
[347104630,1735500353061,-2182.83530675,0.00012,2]
[347104631,1735500353085,-7817.16469325,0.00013,2]
[347104632,1735500357621,-10000.0,0.00013,2]
[347104633,1735500362808,-10000.0,0.00013,2]
[347104634,1735500366192,208.78177717,0.00024931,120]
[347104635,1735500367385,-10000.0,0.00013,2]
[347104636,1735500371935,-10000.0,0.00013,2]
[347104637,1735500376352,-10000.0,0.00013,2]
[347104638,1735500380039,559.23644903,0.00024931,120]
[347104639,1735500381325,-10000.0,0.00013,2]
[347104641,1735500388190,5000.01523819,0.00023,120]
[347104645,1735500405069,1514.91855053,0.00024931,120]
[347104647,1735500422359,1778.98117174,0.00024931,120]
[347104649,1735500443221,699.86122029,0.00024931,120]
[347104651,1735500451906,370.7227152,0.00024931,120]
[347104652,1735500461213,433.91842343,0.00024931,120]
[347104653,1735500465302,200.05207302,0.00024931,120]
[347104654,1735500469657,372.57873502,0.00024931,120]
[347104655,1735500475800,224.21732784,0.00024931,120]
[347104657,1735500502261,548.24726041,0.00024931,120]
[347104658,1735500506791,1562.9348865,0.00024931,120]
[347104659,1735500509096,2066.73772079,0.00024931,120]
[347104660,1735500509952,759.40376821,0.00024931,120]
[347104661,1735500510741,756.0,0.00024931,120]
[347104662,1735500511526,326.52976824,0.00024931,120]
[347104663,1735500511600,1093.17043231,0.00024931,120]
[347104666,1735500516639,1406.13248262,0.00024931,120]
[347104667,1735500517915,155.20463882,0.00024931,120]
[347104668,1735500580362,500.0,0.00019979,120]
[347104679,1735500631632,-2386.18208191,0.000128,2]
[347104680,1735500631642,-7657.75863798,0.00013,2]
[347104681,1735500631654,-1825.24541098,0.00013,2]
[347104682,1735500631669,-1880.59994591,0.00013,2]
[347104683,1735500631679,-185.27,0.00013699,2]
[347104684,1735500631688,-291.22,0.0001371,2]
[347104685,1735500631697,-500.0,0.00014,2]
[347104686,1735500631707,-250.0,0.00015108,2]
[347104687,1735500631716,-328.02,0.00015132,2]
[347104688,1735500631725,-500.0,0.00015164,2]
[347104689,1735500631734,-250.0,0.0001517,2]
[347104690,1735500631744,-711.81,0.00015193,2]
[347104691,1735500631753,-200.0,0.00015201,2]
[347104692,1735500631762,-200.0,0.00015516,2]
[347104693,1735500631772,-492.37,0.00015904,2]
[347104694,1735500631781,-504.62,0.00015911,2]
[347104695,1735500631790,-502.96,0.00015924,2]
[347104696,1735500631799,-729.027,0.00015925,2]
[347104697,1735500631809,-500.19,0.0001595,2]
[347104698,1735500631819,-291.22,0.00015974,2]
[347104699,1735500631828,-815.41179025,0.00015986,2]
[347104700,1735500631837,-988.4172,0.00015987,2]
[347104701,1735500631847,-418.0314,0.00015987,2]
[347104702,1735500631856,-500.0,0.00015999,2]
[347104703,1735500631866,-1000.0,0.00015999,2]
[347104704,1735500631875,-500.0,0.00015999,2]
[347104705,1735500631884,-500.0,0.00015999,2]
[347104706,1735500631894,-500.0,0.00015999,2]
[347104707,1735500631905,-500.0,0.00015999,2]
[347104708,1735500631914,-550.0,0.00016,2]
[347104709,1735500631924,-1348.5313,0.00016,2]
[347104710,1735500631933,-157.014978,0.00016086,2]
[347104711,1735500631942,-500.0,0.00016086,2]
[347104712,1735500631952,-500.0,0.00016086,2]
[347104713,1735500631962,-688.95,0.00016086,2]
[347104714,1735500631971,-155.940262,0.00016086,2]
[347104715,1735500631980,-356.954185,0.00016086,2]
[347104717,1735500631990,-154.072404,0.00016086,2]
[347104719,1735500632000,-306.890422,0.00016086,2]
[347104721,1735500632009,-500.0,0.00016086,2]
[347104723,1735500632019,-500.0,0.00016086,2]
[347104725,1735500632028,-500.0,0.00016086,2]
[347104727,1735500632038,-500.0,0.00016086,2]
[347104729,1735500632047,-788.16,0.00016086,2]
[347104731,1735500632056,-500.0,0.00016086,2]
[347104733,1735500632066,-500.0,0.00016086,2]
[347104735,1735500632075,-356.954182,0.00016086,2]
[347104737,1735500632084,-306.890421,0.00016086,2]
[347104739,1735500632093,-500.0,0.00016086,2]
[347104741,1735500632102,-500.0,0.00016086,2]
[347104743,1735500632111,-500.0,0.00016086,2]
[347104744,1735500632120,-500.0,0.00016086,2]
[347104745,1735500632129,-500.0,0.00016086,2]
[347104746,1735500632139,-500.0,0.00016086,2]
[347104747,1735500632150,-500.0,0.00016086,2]
[347104748,1735500632159,-500.0,0.00016086,2]
[347104749,1735500632168,-500.0,0.00016086,2]
[347104750,1735500632178,-500.0,0.00016086,2]
[347104751,1735500632190,-500.0,0.00016086,2]
[347104752,1735500632199,-500.0,0.00016086,2]
[347104753,1735500632209,-500.0,0.00016086,2]
[347104754,1735500632218,-500.0,0.00016086,2]
[347104755,1735500632229,-500.0,0.00016086,2]
[347104756,1735500632238,-500.0,0.00016086,2]
[347104757,1735500632247,-500.0,0.00016086,2]
[347104758,1735500632257,-500.0,0.00016086,2]
[347104759,1735500632266,-500.0,0.00016086,2]
[347104760,1735500632275,-500.0,0.00016086,2]
[347104761,1735500632284,-500.0,0.00016086,2]
[347104762,1735500632294,-500.0,0.00016086,2]
[347104763,1735500632303,-500.0,0.00016086,2]
[347104764,1735500632313,-500.0,0.00016086,2]
[347104765,1735500632322,-500.0,0.00016086,2]
[347104766,1735500632331,-500.0,0.00016086,2]
[347104767,1735500632341,-500.0,0.00016086,2]
[347104768,1735500632350,-500.0,0.00016086,2]
[347104769,1735500632359,-500.0,0.00016086,2]
[347104770,1735500632368,-500.0,0.00016086,2]
[347104771,1735500632378,-500.0,0.00016086,2]
[347104772,1735500632387,-500.0,0.00016086,2]
[347104773,1735500632396,-500.0,0.00016086,2]
[347104774,1735500632406,-502.21086994,0.00016086,2]
[347104775,1735500632416,-500.0,0.00016086,2]
[347104776,1735500632425,-500.0,0.00016086,2]
[347104777,1735500632434,-500.0,0.00016086,2]
[347104778,1735500632443,-500.0,0.00016086,2]
[347104779,1735500632452,-626.29,0.00016086,2]
[347104780,1735500632462,-500.0,0.00016086,2]
[347104781,1735500632471,-500.0,0.00016086,2]
[347104782,1735500632480,-500.0,0.00016086,2]
[347104783,1735500632489,-500.0,0.00016086,2]
[347104784,1735500632499,-500.0,0.00016086,2]
[347104785,1735500632509,-500.0,0.00016086,2]
[347104786,1735500632518,-500.0,0.00016086,2]
[347104787,1735500632527,-500.0,0.00016086,2]
[347104788,1735500632536,-500.0,0.00016086,2]
[347104789,1735500632545,-747.01,0.00016086,2]
[347104790,1735500632555,-500.0,0.00016086,2]
[347104791,1735500632564,-500.0,0.00016086,2]
[347104792,1735500632573,-500.0,0.00016086,2]
[347104793,1735500632582,-500.0,0.00016086,2]
[347104794,1735500632591,-500.0,0.00016086,2]
[347104795,1735500632600,-500.0,0.00016086,2]
[347104796,1735500632609,-500.0,0.00016086,2]
[347104797,1735500632619,-500.0,0.00016086,2]
[347104798,1735500632628,-500.0,0.00016086,2]
[347104799,1735500632637,-500.0,0.00016086,2]
[347104800,1735500632646,-500.0,0.00016086,2]
[347104801,1735500632655,-500.0,0.00016086,2]
[347104802,1735500632665,-500.0,0.00016086,2]
[347104803,1735500632674,-500.0,0.00016086,2]
[347104804,1735500632683,-500.0,0.00016086,2]
[347104805,1735500632692,-500.0,0.00016086,2]
[347104806,1735500632701,-500.0,0.00016086,2]
[347104807,1735500632710,-635.5,0.00016086,2]
[347104808,1735500632719,-500.0,0.00016086,2]
[347104809,1735500632729,-500.0,0.00016086,2]
[347104810,1735500632738,-500.0,0.00016086,2]
[347104811,1735500632747,-2013.54,0.00016086,2]
[347104812,1735500632757,-500.0,0.00016086,2]
[347104813,1735500632766,-500.0,0.00016086,2]
[347104814,1735500632775,-500.0,0.00016086,2]
[347104815,1735500632785,-500.0,0.00016086,2]
[347104816,1735500632797,-500.0,0.00016086,2]
[347104817,1735500632807,-500.0,0.00016086,2]
[347104818,1735500632816,-500.0,0.00016086,2]
[347104819,1735500632825,-178.470111,0.00016086,2]
[347104820,1735500632834,-500.0,0.00016086,2]
[347104821,1735500632843,-290.995413,0.00016086,2]
[347104822,1735500632852,-500.0,0.00016086,2]
[347104823,1735500632861,-500.0,0.00016086,2]
[347104824,1735500632871,-500.0,0.00016086,2]
[347104825,1735500632881,-506.71,0.00016086,2]
[347104826,1735500632891,-500.0,0.00016086,2]
[347104827,1735500632900,-500.0,0.00016086,2]
[347104828,1735500632909,-500.0,0.00016086,2]
[347104829,1735500632918,-1094.72,0.00016086,2]
[347104830,1735500632927,-500.0,0.00016086,2]
[347104831,1735500632936,-500.0,0.00016086,2]
[347104832,1735500632946,-662.98,0.00016086,2]
[347104833,1735500632955,-500.0,0.00016086,2]
[347104834,1735500632965,-500.0,0.00016086,2]
[347104835,1735500632974,-500.0,0.00016086,2]
[347104836,1735500632984,-500.0,0.00016086,2]
[347104837,1735500632994,-500.0,0.00016086,2]
[347104838,1735500633004,-500.0,0.00016086,2]
[347104839,1735500633013,-500.0,0.00016086,2]
[347104840,1735500633022,-500.0,0.00016086,2]
[347104841,1735500633032,-623.47,0.00016086,2]
[347104842,1735500633041,-500.0,0.00016086,2]
[347104843,1735500633051,-526.80574879,0.00016086,2]
[347104844,1735500633060,-500.0,0.00016086,2]
[347104845,1735500633070,-2246.9,0.00016086,2]
[347104846,1735500633080,-500.99027561,0.00016087,2]
[347104847,1735500633089,-500.0,0.00016087,2]
[347104848,1735500633099,-500.0,0.00016087,2]
[347104849,1735500633108,-500.0,0.00016087,2]
[347104850,1735500633118,-500.0,0.00016087,2]
[347104851,1735500633128,-502.24790379,0.00016087,2]